[Event "Titled Tuesday Blitz May 03 Early 2022"]
[White "Matveeva, Olga"]
[Black "Cramling Bellon, Anna"]
[WhiteFideId "24107018"]
[BlackFideId "32009232"]
[WhiteElo "2083"]
[BlackElo "1905"]
[Result "1-0"]
[Round "11"]
[TimeControl "180+1"]
[Date "2022.05.03"]
[WhiteClock "0:00:15"]
[BlackClock "0:00:01"]

1. d4 {[%clk 0:02:58]}  Nf6 {[%clk 0:02:56]} 2. c4 {[%clk 0:02:58]}  e6 {[%clk 0:02:57]} 3. g3 {[%clk 0:02:56]}  d5 {[%clk 0:02:53]} 4. Nf3 {[%clk 0:02:56]}  Bb4+ {[%clk 0:02:52]} 5. Bd2 {[%clk 0:02:55]}  Bd6 {[%clk 0:02:50]} 6. Nc3 {[%clk 0:02:51]}  c6 {[%clk 0:02:51]} 7. Bg5 {[%clk 0:02:48]}  Nbd7 {[%clk 0:02:38]} 8. e4 {[%clk 0:02:44]}  dxe4 {[%clk 0:02:38]} 9. Nxe4 {[%clk 0:02:44]}  Bb4+ {[%clk 0:02:31]} 10. Nc3 {[%clk 0:02:43]}  Qa5 {[%clk 0:02:25]} 11. Bd2 {[%clk 0:02:40]}  O-O {[%clk 0:02:11]} 12. Bg2 {[%clk 0:02:39]}  Nb6 {[%clk 0:02:05]} 13. Ne5 {[%clk 0:02:35]}  Qa6 {[%clk 0:01:54]} 14. Qe2 {[%clk 0:02:32]}  Rd8 {[%clk 0:01:51]} 15. Be3 {[%clk 0:02:15]}  Na4 {[%clk 0:01:23]} 16. O-O {[%clk 0:02:05]}  Nxc3 {[%clk 0:01:13]} 17. bxc3 {[%clk 0:02:06]}  Bxc3 {[%clk 0:01:14]} 18. Rad1 {[%clk 0:02:01]}  Bd7 {[%clk 0:01:06]} 19. Bg5 {[%clk 0:01:59]}  Be8 {[%clk 0:00:45]} 20. Bxf6 {[%clk 0:01:51]}  gxf6 {[%clk 0:00:45]} 21. Qg4+ {[%clk 0:01:50]}  Kh8 {[%clk 0:00:45]} 22. Nf3 {[%clk 0:01:04]}  Qxc4 {[%clk 0:00:45]} 23. Qh4 {[%clk 0:01:01]}  Kg7 {[%clk 0:00:40]} 24. Rc1 {[%clk 0:01:00]}  Qb4 {[%clk 0:00:33]} 25. Rfd1 {[%clk 0:00:58]}  e5 {[%clk 0:00:22]} 26. dxe5 {[%clk 0:00:55]}  Qxh4 {[%clk 0:00:20]} 27. Nxh4 {[%clk 0:00:54]}  Rxd1+ {[%clk 0:00:17]} 28. Rxd1 {[%clk 0:00:53]}  fxe5 {[%clk 0:00:18]} 29. Nf5+ {[%clk 0:00:52]}  Kf6 {[%clk 0:00:18]} 30. g4 {[%clk 0:00:51]}  Ba5 {[%clk 0:00:05]} 31. h4 {[%clk 0:00:51]}  Rd8 {[%clk 0:00:03]} 32. Rb1 {[%clk 0:00:47]}  b5 {[%clk 0:00:03]} 33. Be4 {[%clk 0:00:46]}  Bb6 {[%clk 0:00:03]} 34. g5+ {[%clk 0:00:41]}  Ke6 {[%clk 0:00:02]} 35. Ng7+ {[%clk 0:00:41]}  Ke7 {[%clk 0:00:02]} 36. Bxh7 {[%clk 0:00:39]}  Rd2 {[%clk 0:00:02]} 37. Nf5+ {[%clk 0:00:35]}  Ke6 {[%clk 0:00:02]} 38. Ng7+ {[%clk 0:00:28]}  Ke7 {[%clk 0:00:02]} 39. Rf1 {[%clk 0:00:28]}  Bc5 {[%clk 0:00:02]} 40. Be4 {[%clk 0:00:25]}  Bd7 {[%clk 0:00:02]} 41. h5 {[%clk 0:00:24]}  Kf8 {[%clk 0:00:02]} 42. h6 {[%clk 0:00:22]}  Bg4 {[%clk 0:00:01]} 43. Nf5 {[%clk 0:00:19]}  Bxf5 {[%clk 0:00:01]} 44. Bxf5 {[%clk 0:00:20]}  Kg8 {[%clk 0:00:02]} 45. Kg2 {[%clk 0:00:19]}  Kh8 {[%clk 0:00:02]} 46. Kf3 {[%clk 0:00:19]}  Bd4 {[%clk 0:00:02]} 47. Kg4 {[%clk 0:00:18]}  Rxf2 {[%clk 0:00:02]} 48. Rc1 {[%clk 0:00:17]}  c5 {[%clk 0:00:02]} 49. Rb1 {[%clk 0:00:17]}  Rf4+ {[%clk 0:00:02]} 50. Kh5 {[%clk 0:00:16]}  Bf2 {[%clk 0:00:01]} 51. Rh1 {[%clk 0:00:16]}  b4 {[%clk 0:00:01]} 52. g6 {[%clk 0:00:16]}  fxg6+ {[%clk 0:00:01]} 53. Bxg6 {[%clk 0:00:15]}  c4 {[%clk 0:00:02]} 54. h7 {[%clk 0:00:16]}  c3 {[%clk 0:00:02]} 55. Rd1 {[%clk 0:00:16]}  Kg7 {[%clk 0:00:02]} 56. Rd7+ {[%clk 0:00:15]}  Kf6 {[%clk 0:00:01]} 57. h8=Q+ {[%clk 0:00:15]} 1-0


[Site "https://www.chess.com"]

[Event "Titled Tuesday Blitz May 03 Early 2022"]
[White "Mikhalsky, Vladimir"]
[Black "Kim, Sergey"]
[WhiteFideId "14144352"]
[BlackFideId "13700570"]
[WhiteElo "2301"]
[BlackElo "2553"]
[Result "1-0"]
[Round "11"]
[TimeControl "180+1"]
[Date "2022.05.03"]
[WhiteClock "0:00:12"]
[BlackClock "0:00:03"]

1. d4 {[%clk 0:02:56]}  Nf6 {[%clk 0:02:59]} 2. c4 {[%clk 0:02:55]}  g6 {[%clk 0:02:59]} 3. Nc3 {[%clk 0:02:55]}  Bg7 {[%clk 0:03:00]} 4. e4 {[%clk 0:02:54]}  d6 {[%clk 0:03:00]} 5. f3 {[%clk 0:02:54]}  O-O {[%clk 0:03:00]} 6. Be3 {[%clk 0:02:54]}  Nc6 {[%clk 0:03:00]} 7. Nge2 {[%clk 0:02:53]}  a6 {[%clk 0:03:01]} 8. Rb1 {[%clk 0:02:50]}  e5 {[%clk 0:02:59]} 9. d5 {[%clk 0:02:46]}  Ne7 {[%clk 0:02:59]} 10. Qd2 {[%clk 0:02:46]}  c5 {[%clk 0:02:55]} 11. Nc1 {[%clk 0:02:30]}  Nd7 {[%clk 0:02:52]} 12. Be2 {[%clk 0:02:27]}  f5 {[%clk 0:02:49]} 13. a3 {[%clk 0:02:24]}  Nf6 {[%clk 0:02:46]} 14. Nd3 {[%clk 0:02:23]}  b5 {[%clk 0:02:35]} 15. O-O {[%clk 0:02:06]}  bxc4 {[%clk 0:02:12]} 16. Ne1 {[%clk 0:02:00]}  fxe4 {[%clk 0:02:07]} 17. fxe4 {[%clk 0:01:48]}  Ng4 {[%clk 0:02:04]} 18. Bxc4 {[%clk 0:01:39]}  Nxe3 {[%clk 0:02:02]} 19. Qxe3 {[%clk 0:01:39]}  Rxf1+ {[%clk 0:01:55]} 20. Bxf1 {[%clk 0:01:37]}  Kh8 {[%clk 0:01:55]} 21. Nf3 {[%clk 0:01:35]}  Ng8 {[%clk 0:01:53]} 22. Ng5 {[%clk 0:01:30]}  Qe7 {[%clk 0:01:45]} 23. Bc4 {[%clk 0:01:27]}  Bh6 {[%clk 0:01:38]} 24. h4 {[%clk 0:01:27]}  Kg7 {[%clk 0:01:28]} 25. Rf1 {[%clk 0:01:25]}  Bd7 {[%clk 0:01:16]} 26. Qg3 {[%clk 0:01:14]}  Bxg5 {[%clk 0:01:09]} 27. hxg5 {[%clk 0:01:08]}  a5 {[%clk 0:01:07]} 28. Bb5 {[%clk 0:01:01]}  Bxb5 {[%clk 0:00:54]} 29. Nxb5 {[%clk 0:01:01]}  a4 {[%clk 0:00:54]} 30. Nc3 {[%clk 0:00:48]}  h6 {[%clk 0:00:37]} 31. gxh6+ {[%clk 0:00:43]}  Nxh6 {[%clk 0:00:38]} 32. Qh3 {[%clk 0:00:44]}  Nf7 {[%clk 0:00:32]} 33. Qe6 {[%clk 0:00:40]}  Qxe6 {[%clk 0:00:31]} 34. dxe6 {[%clk 0:00:40]}  Ng5 {[%clk 0:00:32]} 35. e7 {[%clk 0:00:39]}  Re8 {[%clk 0:00:31]} 36. Nxa4 {[%clk 0:00:33]}  Rxe7 {[%clk 0:00:31]} 37. Nc3 {[%clk 0:00:32]}  Rb7 {[%clk 0:00:29]} 38. Rf2 {[%clk 0:00:31]}  Ne6 {[%clk 0:00:28]} 39. Rd2 {[%clk 0:00:26]}  Nd4 {[%clk 0:00:27]} 40. Nd5 {[%clk 0:00:25]}  Rb3 {[%clk 0:00:24]} 41. Rf2 {[%clk 0:00:22]}  Rd3 {[%clk 0:00:20]} 42. a4 {[%clk 0:00:21]}  Rd1+ {[%clk 0:00:18]} 43. Kh2 {[%clk 0:00:21]}  Ra1 {[%clk 0:00:17]} 44. Nc3 {[%clk 0:00:21]}  Ne6 {[%clk 0:00:15]} 45. g3 {[%clk 0:00:20]}  Nd4 {[%clk 0:00:14]} 46. Kh3 {[%clk 0:00:20]}  g5 {[%clk 0:00:13]} 47. Kg4 {[%clk 0:00:20]}  Kg6 {[%clk 0:00:14]} 48. Rf8 {[%clk 0:00:20]}  Rg1 {[%clk 0:00:10]} 49. Rg8+ {[%clk 0:00:20]}  Kf6 {[%clk 0:00:11]} 50. Rxg5 {[%clk 0:00:19]}  Rg2 {[%clk 0:00:10]} 51. Rh5 {[%clk 0:00:18]}  Rxb2 {[%clk 0:00:09]} 52. Rh6+ {[%clk 0:00:18]}  Ke7 {[%clk 0:00:09]} 53. Nd5+ {[%clk 0:00:18]}  Kd7 {[%clk 0:00:09]} 54. a5 {[%clk 0:00:18]}  Ra2 {[%clk 0:00:08]} 55. Rh7+ {[%clk 0:00:17]}  Kc6 {[%clk 0:00:08]} 56. Rc7+ {[%clk 0:00:17]}  Kb5 {[%clk 0:00:08]} 57. Nc3+ {[%clk 0:00:17]}  Kxa5 {[%clk 0:00:06]} 58. Nxa2 {[%clk 0:00:17]}  Kb6 {[%clk 0:00:06]} 59. Rc8 {[%clk 0:00:16]}  Kb7 {[%clk 0:00:06]} 60. Rd8 {[%clk 0:00:16]}  Kc7 {[%clk 0:00:05]} 61. Re8 {[%clk 0:00:16]}  c4 {[%clk 0:00:05]} 62. Nc3 {[%clk 0:00:15]}  Kd7 {[%clk 0:00:05]} 63. Ra8 {[%clk 0:00:14]}  Ne6 {[%clk 0:00:05]} 64. Kf5 {[%clk 0:00:13]}  Nd4+ {[%clk 0:00:05]} 65. Kf6 {[%clk 0:00:13]}  Kc6 {[%clk 0:00:04]} 66. g4 {[%clk 0:00:13]}  Nb5 {[%clk 0:00:03]} 67. Nxb5 {[%clk 0:00:12]} 1-0


[Site "https://www.chess.com"]

[Event "Titled Tuesday Blitz May 03 Early 2022"]
[White "Mohota, Nisha"]
[Black "Mohammadian, Mohammad"]
[WhiteFideId "5004330"]
[BlackFideId "12566055"]
[WhiteElo "2117"]
[BlackElo "1544"]
[Result "1-0"]
[Round "11"]
[TimeControl "180+1"]
[Date "2022.05.03"]
[WhiteClock "0:02:14"]
[BlackClock "0:01:14"]

1. e3 {[%clk 0:03:00]}  e5 {[%clk 0:02:59]} 2. c4 {[%clk 0:03:00]}  c5 {[%clk 0:02:54]} 3. Nc3 {[%clk 0:03:00]}  Nf6 {[%clk 0:02:51]} 4. g3 {[%clk 0:02:59]}  a6 {[%clk 0:02:50]} 5. Bg2 {[%clk 0:02:59]}  Nc6 {[%clk 0:02:49]} 6. Nge2 {[%clk 0:02:58]}  Bd6 {[%clk 0:02:47]} 7. O-O {[%clk 0:02:56]}  O-O {[%clk 0:02:46]} 8. Nd5 {[%clk 0:02:56]}  Nxd5 {[%clk 0:02:43]} 9. cxd5 {[%clk 0:02:53]}  Ne7 {[%clk 0:02:42]} 10. d4 {[%clk 0:02:49]}  exd4 {[%clk 0:02:37]} 11. exd4 {[%clk 0:02:48]}  cxd4 {[%clk 0:02:37]} 12. Nxd4 {[%clk 0:02:47]}  b5 {[%clk 0:02:35]} 13. Bg5 {[%clk 0:02:44]}  Bb7 {[%clk 0:02:30]} 14. Nf5 {[%clk 0:02:43]}  Bc5 {[%clk 0:02:10]} 15. Nxe7+ {[%clk 0:02:42]}  Bxe7 {[%clk 0:02:09]} 16. Bxe7 {[%clk 0:02:42]}  Qxe7 {[%clk 0:02:09]} 17. d6 {[%clk 0:02:42]}  Qf6 {[%clk 0:02:04]} 18. Bxb7 {[%clk 0:02:41]}  Ra7 {[%clk 0:01:58]} 19. Be4 {[%clk 0:02:35]}  Qxb2 {[%clk 0:01:56]} 20. Qc2 {[%clk 0:02:35]}  Qxc2 {[%clk 0:01:56]} 21. Bxc2 {[%clk 0:02:35]}  Re8 {[%clk 0:01:55]} 22. Rfe1 {[%clk 0:02:34]}  Rc8 {[%clk 0:01:53]} 23. Rac1 {[%clk 0:02:30]}  g6 {[%clk 0:01:50]} 24. Bb3 {[%clk 0:02:27]}  Rc6 {[%clk 0:01:42]} 25. Rxc6 {[%clk 0:02:21]}  dxc6 {[%clk 0:01:42]} 26. Re7 {[%clk 0:02:21]}  Ra8 {[%clk 0:01:37]} 27. d7 {[%clk 0:02:19]}  Rf8 {[%clk 0:01:25]} 28. Re8 {[%clk 0:02:19]}  c5 {[%clk 0:01:15]} 29. d8=Q {[%clk 0:02:13]}  Rxe8 {[%clk 0:01:14]} 30. Qxe8+ {[%clk 0:02:13]}  Kg7 {[%clk 0:01:14]} 31. Qxf7+ {[%clk 0:02:14]} 1-0


[Site "https://www.chess.com"]

[Event "Titled Tuesday Blitz May 03 Early 2022"]
[White "Murtazin, Bulat"]
[Black "Thybo, Jesper Sondergaard"]
[WhiteFideId "24151351"]
[BlackFideId "1438832"]
[WhiteElo "2329"]
[BlackElo "2316"]
[Result "1/2-1/2"]
[Round "11"]
[TimeControl "180+1"]
[Date "2022.05.03"]
[WhiteClock "0:00:07"]
[BlackClock "0:00:20"]

1. d4 {[%clk 0:02:57]}  Nf6 {[%clk 0:02:59]} 2. c4 {[%clk 0:02:57]}  c5 {[%clk 0:03:00]} 3. d5 {[%clk 0:02:56]}  e6 {[%clk 0:03:00]} 4. Nc3 {[%clk 0:02:56]}  exd5 {[%clk 0:03:01]} 5. cxd5 {[%clk 0:02:57]}  d6 {[%clk 0:03:02]} 6. Nf3 {[%clk 0:02:57]}  g6 {[%clk 0:03:02]} 7. Bf4 {[%clk 0:02:58]}  Bg7 {[%clk 0:02:57]} 8. Qa4+ {[%clk 0:02:57]}  Bd7 {[%clk 0:02:57]} 9. Qb3 {[%clk 0:02:57]}  Qc7 {[%clk 0:02:53]} 10. e3 {[%clk 0:02:56]}  O-O {[%clk 0:02:52]} 11. Be2 {[%clk 0:02:55]}  Nh5 {[%clk 0:02:46]} 12. Bg5 {[%clk 0:02:55]}  Na6 {[%clk 0:02:43]} 13. O-O {[%clk 0:02:53]}  h6 {[%clk 0:02:41]} 14. Bh4 {[%clk 0:02:53]}  Rfe8 {[%clk 0:02:41]} 15. Nd2 {[%clk 0:02:43]}  Nf6 {[%clk 0:02:37]} 16. Bg3 {[%clk 0:02:41]}  Bf5 {[%clk 0:02:27]} 17. Nb5 {[%clk 0:02:33]}  Qb6 {[%clk 0:02:18]} 18. Nc4 {[%clk 0:02:33]}  Qd8 {[%clk 0:02:15]} 19. Nbxd6 {[%clk 0:02:28]}  Rf8 {[%clk 0:02:00]} 20. Qxb7 {[%clk 0:02:19]}  Nb4 {[%clk 0:01:54]} 21. Rfd1 {[%clk 0:02:03]}  Bc2 {[%clk 0:01:49]} 22. Rd2 {[%clk 0:01:52]}  Ne4 {[%clk 0:01:47]} 23. Nxe4 {[%clk 0:01:06]}  Bxe4 {[%clk 0:01:48]} 24. Nd6 {[%clk 0:00:46]}  Bxd5 {[%clk 0:01:40]} 25. Rxd5 {[%clk 0:00:39]}  Rb8 {[%clk 0:01:40]} 26. Nxf7 {[%clk 0:00:19]}  Qxd5 {[%clk 0:01:33]} 27. Qxd5 {[%clk 0:00:19]}  Nxd5 {[%clk 0:01:33]} 28. Bxb8 {[%clk 0:00:19]}  Rxb8 {[%clk 0:01:33]} 29. Bc4 {[%clk 0:00:19]}  Bxb2 {[%clk 0:01:28]} 30. Rd1 {[%clk 0:00:15]}  Kxf7 {[%clk 0:01:10]} 31. Rxd5 {[%clk 0:00:15]}  Kf6 {[%clk 0:01:10]} 32. Rxc5 {[%clk 0:00:11]}  Be5 {[%clk 0:01:04]} 33. g3 {[%clk 0:00:10]}  Rb7 {[%clk 0:00:58]} 34. Rc6+ {[%clk 0:00:10]}  Kg7 {[%clk 0:00:57]} 35. Bd3 {[%clk 0:00:10]}  Rb6 {[%clk 0:00:57]} 36. Rxb6 {[%clk 0:00:10]}  axb6 {[%clk 0:00:57]} 37. Kf1 {[%clk 0:00:10]}  Kf6 {[%clk 0:00:57]} 38. Be4 {[%clk 0:00:10]}  g5 {[%clk 0:00:56]} 39. Ke2 {[%clk 0:00:10]}  g4 {[%clk 0:00:55]} 40. Kd3 {[%clk 0:00:09]}  h5 {[%clk 0:00:54]} 41. Kc4 {[%clk 0:00:09]}  Bd6 {[%clk 0:00:50]} 42. Bg2 {[%clk 0:00:08]}  Ke5 {[%clk 0:00:35]} 43. h3 {[%clk 0:00:08]}  Be7 {[%clk 0:00:26]} 44. hxg4 {[%clk 0:00:08]}  hxg4 {[%clk 0:00:27]} 45. Bf1 {[%clk 0:00:08]}  Bd6 {[%clk 0:00:27]} 46. Be2 {[%clk 0:00:08]}  Kf5 {[%clk 0:00:27]} 47. Kd5 {[%clk 0:00:08]}  Bb4 {[%clk 0:00:26]} 48. Bd3+ {[%clk 0:00:08]}  Kg5 {[%clk 0:00:26]} 49. Ke4 {[%clk 0:00:05]}  Be1 {[%clk 0:00:25]} 50. f4+ {[%clk 0:00:05]}  gxf3 {[%clk 0:00:24]} 51. Kxf3 {[%clk 0:00:05]}  Bc3 {[%clk 0:00:23]} 52. Be4 {[%clk 0:00:04]}  Be1 {[%clk 0:00:23]} 53. Bc6 {[%clk 0:00:04]}  Bc3 {[%clk 0:00:21]} 54. Bd7 {[%clk 0:00:04]}  Be1 {[%clk 0:00:21]} 55. g4 {[%clk 0:00:04]}  Bd2 {[%clk 0:00:21]} 56. Ke4 {[%clk 0:00:04]}  Kf6 {[%clk 0:00:21]} 57. Kd4 {[%clk 0:00:04]}  Bc1 {[%clk 0:00:21]} 58. Bf5 {[%clk 0:00:03]}  Bd2 {[%clk 0:00:20]} 59. e4 {[%clk 0:00:03]}  Bf4 {[%clk 0:00:20]} 60. Kd5 {[%clk 0:00:03]}  Bg3 {[%clk 0:00:19]} 61. Kc6 {[%clk 0:00:03]}  Bf2 {[%clk 0:00:19]} 62. Kd6 {[%clk 0:00:03]}  Bg3+ {[%clk 0:00:20]} 63. Kd5 {[%clk 0:00:04]}  Bf4 {[%clk 0:00:20]} 64. Bc8 {[%clk 0:00:03]}  Bg3 {[%clk 0:00:20]} 65. a4 {[%clk 0:00:03]}  Bf4 {[%clk 0:00:19]} 66. Bb7 {[%clk 0:00:03]}  Bg3 {[%clk 0:00:20]} 67. Bc8 {[%clk 0:00:03]}  Bf4 {[%clk 0:00:20]} 68. Kd4 {[%clk 0:00:03]}  Bg3 {[%clk 0:00:20]} 69. Ke3 {[%clk 0:00:02]}  Bh4 {[%clk 0:00:19]} 70. Kf4 {[%clk 0:00:02]}  Bg5+ {[%clk 0:00:19]} 71. Kf3 {[%clk 0:00:02]}  Ke5 {[%clk 0:00:19]} 72. Bb7 {[%clk 0:00:02]}  Bf6 {[%clk 0:00:20]} 73. Bc6 {[%clk 0:00:03]}  Bg5 {[%clk 0:00:20]} 74. Ke2 {[%clk 0:00:02]}  Bh6 {[%clk 0:00:21]} 75. Kd3 {[%clk 0:00:03]}  Bf4 {[%clk 0:00:21]} 76. Bd7 {[%clk 0:00:03]}  Bg5 {[%clk 0:00:21]} 77. Bf5 {[%clk 0:00:04]}  Bf4 {[%clk 0:00:22]} 78. Kc4 {[%clk 0:00:05]}  Bg5 {[%clk 0:00:23]} 79. Kb5 {[%clk 0:00:05]}  Be3 {[%clk 0:00:23]} 80. Kc6 {[%clk 0:00:06]}  Kf6 {[%clk 0:00:21]} 81. Kd7 {[%clk 0:00:05]}  Bf2 {[%clk 0:00:21]} 82. Kd6 {[%clk 0:00:05]}  Be3 {[%clk 0:00:21]} 83. Kd5 {[%clk 0:00:06]}  Bf4 {[%clk 0:00:21]} 84. Kd4 {[%clk 0:00:06]}  Bg3 {[%clk 0:00:20]} 85. Kc4 {[%clk 0:00:05]}  Bh2 {[%clk 0:00:20]} 86. Kd5 {[%clk 0:00:06]}  Bg3 {[%clk 0:00:20]} 87. Kc6 {[%clk 0:00:06]}  Bf2 {[%clk 0:00:20]} 88. Kd6 {[%clk 0:00:06]}  Bg3+ {[%clk 0:00:20]} 89. Kd5 {[%clk 0:00:06]}  Bf4 {[%clk 0:00:20]} 90. Kd4 {[%clk 0:00:06]}  Bg3 {[%clk 0:00:20]} 91. Kd5 {[%clk 0:00:07]}  Bf4 {[%clk 0:00:20]} 1/2-1/2


[Site "https://www.chess.com"]

[Event "Titled Tuesday Blitz May 03 Early 2022"]
[White "Navalgund, Niranjan"]
[Black "Shyaamnikhil P"]
[WhiteFideId "5030854"]
[BlackFideId "5024218"]
[WhiteElo "2290"]
[BlackElo "2329"]
[Result "1/2-1/2"]
[Round "11"]
[TimeControl "180+1"]
[Date "2022.05.03"]
[WhiteClock "0:00:19"]
[BlackClock "0:00:06"]

1. e4 {[%clk 0:03:00]}  c5 {[%clk 0:02:59]} 2. d4 {[%clk 0:02:59]}  cxd4 {[%clk 0:02:58]} 3. c3 {[%clk 0:02:59]}  Nf6 {[%clk 0:02:58]} 4. e5 {[%clk 0:02:59]}  Nd5 {[%clk 0:02:58]} 5. Nf3 {[%clk 0:02:59]}  e6 {[%clk 0:02:58]} 6. Bc4 {[%clk 0:02:56]}  Nb6 {[%clk 0:02:57]} 7. Bb3 {[%clk 0:02:56]}  d6 {[%clk 0:02:57]} 8. cxd4 {[%clk 0:02:55]}  dxe5 {[%clk 0:02:54]} 9. Nxe5 {[%clk 0:02:56]}  Nc6 {[%clk 0:02:54]} 10. O-O {[%clk 0:02:47]}  Qxd4 {[%clk 0:02:46]} 11. Nxc6 {[%clk 0:02:42]}  Qxd1 {[%clk 0:02:46]} 12. Bxd1 {[%clk 0:02:43]}  bxc6 {[%clk 0:02:46]} 13. Bf3 {[%clk 0:02:44]}  Nd5 {[%clk 0:02:46]} 14. Nc3 {[%clk 0:02:43]}  Ba6 {[%clk 0:02:43]} 15. Rd1 {[%clk 0:02:42]}  Rb8 {[%clk 0:02:44]} 16. Nxd5 {[%clk 0:02:31]}  cxd5 {[%clk 0:02:42]} 17. Bf4 {[%clk 0:02:32]}  Rc8 {[%clk 0:02:33]} 18. Rac1 {[%clk 0:02:32]}  Bc5 {[%clk 0:02:29]} 19. b4 {[%clk 0:02:19]}  Bxb4 {[%clk 0:02:21]} 20. Rxc8+ {[%clk 0:02:20]}  Bxc8 {[%clk 0:02:21]} 21. Rc1 {[%clk 0:02:14]}  O-O {[%clk 0:02:19]} 22. Rc7 {[%clk 0:02:13]}  a5 {[%clk 0:02:19]} 23. Be2 {[%clk 0:02:12]}  e5 {[%clk 0:01:14]} 24. Bxe5 {[%clk 0:01:46]}  Be6 {[%clk 0:01:12]} 25. Bb5 {[%clk 0:01:40]}  Rc8 {[%clk 0:01:09]} 26. Rxc8+ {[%clk 0:01:35]}  Bxc8 {[%clk 0:01:10]} 27. Bd4 {[%clk 0:01:33]}  f6 {[%clk 0:01:06]} 28. f3 {[%clk 0:01:33]}  Kf7 {[%clk 0:01:05]} 29. Kf2 {[%clk 0:01:33]}  Ke6 {[%clk 0:01:03]} 30. Ke3 {[%clk 0:01:33]}  Bd7 {[%clk 0:01:03]} 31. Bd3 {[%clk 0:01:33]}  g6 {[%clk 0:01:02]} 32. g4 {[%clk 0:01:28]}  a4 {[%clk 0:00:59]} 33. f4 {[%clk 0:01:26]}  f5 {[%clk 0:00:54]} 34. h3 {[%clk 0:01:19]}  fxg4 {[%clk 0:00:43]} 35. hxg4 {[%clk 0:01:18]}  Kf7 {[%clk 0:00:44]} 36. g5 {[%clk 0:00:44]}  Bd6 {[%clk 0:00:39]} 37. Bc2 {[%clk 0:00:36]}  a3 {[%clk 0:00:32]} 38. Bb3 {[%clk 0:00:36]}  Ke6 {[%clk 0:00:33]} 39. Bc2 {[%clk 0:00:35]}  Bb5 {[%clk 0:00:32]} 40. Bb1 {[%clk 0:00:27]}  Bc4 {[%clk 0:00:32]} 41. Kf3 {[%clk 0:00:25]}  Kd7 {[%clk 0:00:31]} 42. f5 {[%clk 0:00:24]}  Ke7 {[%clk 0:00:21]} 43. fxg6 {[%clk 0:00:19]}  hxg6 {[%clk 0:00:22]} 44. Bxg6 {[%clk 0:00:20]}  Bxa2 {[%clk 0:00:21]} 45. Bh7 {[%clk 0:00:19]}  Bb3 {[%clk 0:00:16]} 46. Bd3 {[%clk 0:00:14]}  Bc4 {[%clk 0:00:13]} 47. Bf5 {[%clk 0:00:13]}  Bb5 {[%clk 0:00:11]} 48. g6 {[%clk 0:00:13]}  Be8 {[%clk 0:00:11]} 49. g7 {[%clk 0:00:14]}  Bf7 {[%clk 0:00:11]} 50. Bh7 {[%clk 0:00:14]}  a2 {[%clk 0:00:10]} 51. g8=Q {[%clk 0:00:14]}  Bxg8 {[%clk 0:00:10]} 52. Bxg8 {[%clk 0:00:15]}  Kd7 {[%clk 0:00:09]} 53. Bxd5 {[%clk 0:00:15]}  Kc7 {[%clk 0:00:09]} 54. Bxa2 {[%clk 0:00:15]}  Kd7 {[%clk 0:00:10]} 55. Ke4 {[%clk 0:00:15]}  Ke7 {[%clk 0:00:10]} 56. Kd5 {[%clk 0:00:16]}  Bg3 {[%clk 0:00:09]} 57. Bc4 {[%clk 0:00:16]}  Kd7 {[%clk 0:00:09]} 58. Bc5 {[%clk 0:00:16]}  Kc7 {[%clk 0:00:08]} 59. Bb5 {[%clk 0:00:17]}  Bh2 {[%clk 0:00:08]} 60. Bc6 {[%clk 0:00:17]}  Bg3 {[%clk 0:00:08]} 61. Bb4 {[%clk 0:00:18]}  Kb6 {[%clk 0:00:07]} 62. Bc3 {[%clk 0:00:17]}  Bh2 {[%clk 0:00:07]} 63. Bd4+ {[%clk 0:00:18]}  Kc7 {[%clk 0:00:07]} 64. Kc5 {[%clk 0:00:17]}  Bd6+ {[%clk 0:00:07]} 65. Kb5 {[%clk 0:00:18]}  Bh2 {[%clk 0:00:07]} 66. Bc5 {[%clk 0:00:18]}  Bg3 {[%clk 0:00:06]} 67. Bb4 {[%clk 0:00:18]}  Bh2 {[%clk 0:00:06]} 68. Kc5 {[%clk 0:00:18]}  Bd6+ {[%clk 0:00:05]} 69. Kb5 {[%clk 0:00:19]}  Bxb4 {[%clk 0:00:06]} 1/2-1/2


[Site "https://www.chess.com"]

[Event "Titled Tuesday Blitz May 03 Early 2022"]
[White "Omariev, Maksim"]
[Black "Aldokhin, Ivan"]
[WhiteFideId "4193423"]
[BlackFideId "24115720"]
[WhiteElo "2534"]
[BlackElo "2231"]
[Result "0-1"]
[Round "11"]
[TimeControl "180+1"]
[Date "2022.05.03"]
[WhiteClock "0:00:02"]
[BlackClock "0:00:32"]

1. g4 {[%clk 0:03:00]}  d6 {[%clk 0:02:59]} 2. Bg2 {[%clk 0:02:59]}  Nc6 {[%clk 0:02:58]} 3. h3 {[%clk 0:02:47]}  h5 {[%clk 0:02:47]} 4. g5 {[%clk 0:02:45]}  e5 {[%clk 0:02:46]} 5. h4 {[%clk 0:02:34]}  Nge7 {[%clk 0:02:44]} 6. c4 {[%clk 0:02:30]}  Ng6 {[%clk 0:02:37]} 7. d3 {[%clk 0:02:29]}  Be7 {[%clk 0:02:33]} 8. Nc3 {[%clk 0:02:29]}  f6 {[%clk 0:02:04]} 9. Nf3 {[%clk 0:02:16]}  Bg4 {[%clk 0:01:59]} 10. gxf6 {[%clk 0:02:08]}  Bxf6 {[%clk 0:01:58]} 11. Ng5 {[%clk 0:02:04]}  Nxh4 {[%clk 0:01:54]} 12. Bxc6+ {[%clk 0:01:43]}  bxc6 {[%clk 0:01:53]} 13. Nce4 {[%clk 0:01:22]}  Ng2+ {[%clk 0:01:38]} 14. Kf1 {[%clk 0:01:22]}  Nf4 {[%clk 0:01:38]} 15. Bxf4 {[%clk 0:01:19]}  exf4 {[%clk 0:01:38]} 16. Nxf6+ {[%clk 0:01:01]}  Qxf6 {[%clk 0:01:33]} 17. Ne4 {[%clk 0:01:01]}  Qxb2 {[%clk 0:01:32]} 18. f3 {[%clk 0:00:28]}  Bf5 {[%clk 0:01:29]} 19. Kg2 {[%clk 0:00:21]}  Bxe4 {[%clk 0:01:27]} 20. fxe4 {[%clk 0:00:22]}  f3+ {[%clk 0:01:17]} 21. Kxf3 {[%clk 0:00:21]}  O-O+ {[%clk 0:01:16]} 22. Ke3 {[%clk 0:00:21]}  Qe5 {[%clk 0:01:13]} 23. Qg1 {[%clk 0:00:18]}  c5 {[%clk 0:00:57]} 24. Rf1 {[%clk 0:00:02]}  Rab8 {[%clk 0:00:38]} 25. Rxf8+ {[%clk 0:00:02]}  Rxf8 {[%clk 0:00:36]} 26. Qh2 {[%clk 0:00:02]}  Qg5+ {[%clk 0:00:32]} 0-1


[Site "https://www.chess.com"]